bitfinex-derivatives/quotes_BTCF0:USTF0_20251217
["timestamp","ask_amount","ask_price","bid_price","bid_amount"]
[1765939723409,0.00328578,87498.0,87497.0,0.1035114]
[1765939724209,0.05059578,87498.0,87497.0,0.1035114]
[1765939724414,0.00328578,87498.0,87497.0,0.1035114]
[1765939729415,0.00328578,87498.0,87497.0,0.8181114]
[1765939730813,0.3608,87522.0,87515.0,0.02787]
[1765939730814,0.0114287,87518.0,87515.0,0.02787]
[1765939731013,0.04731,87518.0,87517.0,0.09208]
[1765939731317,0.09344,87518.0,87517.0,0.09208]
[1765939731522,0.04731,87518.0,87517.0,0.09208]
[1765939731714,0.09344,87518.0,87517.0,0.103551]
[1765939732514,0.09644,87518.0,87517.0,0.103551]
[1765939732919,0.05031,87518.0,87517.0,0.09208]
[1765939733125,0.1048678,87525.0,87524.0,0.09208]
[1765939733423,0.09344,87525.0,87524.0,0.1035079]
[1765939734217,0.09344,87528.0,87527.0,0.1035075]
[1765939736117,0.09544,87528.0,87527.0,0.1035075]
[1765939738415,0.09544,87528.0,87527.0,0.09208]
[1765939740418,0.002,87528.0,87527.0,0.09208]
[1765939740612,0.09544,87528.0,87527.0,0.09208]
[1765939740818,0.1068674,87528.0,87527.0,0.09208]
[1765939742727,0.09544,87528.0,87527.0,0.09208]
[1765939744230,0.09544,87528.0,87525.0,0.40789]
[1765939744231,0.09455,87526.0,87525.0,0.40789]
[1765939745327,0.09455,87526.0,87525.0,0.45555]
[1765939745528,0.09555,87526.0,87525.0,0.45555]
[1765939746718,0.09455,87526.0,87525.0,0.09475]
[1765939746923,0.09455,87526.0,87511.0,0.06138138]
[1765939746924,0.09455,87509.0,87508.0,0.09492139]
[1765939747121,0.1059799,87509.0,87508.0,0.00017139]
[1765939747726,0.09455,87491.0,87490.0,0.721]
[1765939747925,0.09455,87491.0,87490.0,0.64445]
[1765939748131,0.09455,87491.0,87490.0,0.69211]
[1765939750348,0.09455,87491.0,87490.0,0.69311]
[1765939751635,0.09455,87491.0,87490.0,0.69211]
[1765939751829,0.04660106,87499.0,87498.0,0.12364]
[1765939752139,0.04660106,87499.0,87498.0,0.1350713]
[1765939752328,0.10615226,87499.0,87498.0,0.12364]
[1765939752641,0.10615226,87499.0,87498.0,0.09475]
[1765939752936,0.10615226,87499.0,87498.0,0.09575]
[1765939753338,0.10615226,87499.0,87498.0,0.04909]
[1765939753537,0.10615226,87499.0,87498.0,0.04809]
[1765939753939,0.10615226,87499.0,87498.0,0.001]
[1765939754333,0.10615226,87499.0,87498.0,0.04809]
[1765939754542,0.10615226,87499.0,87498.0,0.09575]
[1765939754736,0.10615226,87499.0,87498.0,0.09475]
[1765939755041,0.10615226,87499.0,87498.0,0.12364]
[1765939755238,0.04660106,87499.0,87498.0,0.12364]
[1765939755741,0.00017106,87499.0,87498.0,0.12364]
[1765939756242,0.04660106,87499.0,87498.0,0.12364]
[1765939756442,0.09472106,87499.0,87498.0,0.12464]
[1765939756943,0.04660106,87499.0,87498.0,0.12464]
[1765939758033,0.04660106,87499.0,87498.0,0.12564]
[1765939758745,0.04660106,87499.0,87498.0,0.12364]
[1765939758932,0.09472106,87499.0,87498.0,0.12364]
[1765939759738,0.09472106,87499.0,87498.0,0.12464]
[1765939760948,0.00017106,87499.0,87498.0,0.12464]
[1765939761132,0.04660106,87499.0,87498.0,0.12464]
[1765939761745,0.09472106,87499.0,87498.0,0.12464]
[1765939761932,0.00017106,87499.0,87498.0,0.12464]
[1765939763046,0.00017106,87499.0,87498.0,0.12564]
[1765939764538,0.00017106,87499.0,87498.0,0.12464]
[1765939764740,0.00017106,87499.0,87498.0,0.12564]
[1765939765744,0.00017106,87499.0,87498.0,0.12464]
[1765939765938,0.00017106,87499.0,87498.0,0.12564]
[1765939766542,0.00017106,87499.0,87498.0,0.12464]
[1765939766748,0.00017106,87499.0,87498.0,0.12564]
[1765939768941,0.00017106,87499.0,87498.0,0.12464]
[1765939769247,0.00017106,87499.0,87498.0,0.12564]
[1765939776545,1.06e-06,87499.0,87498.0,0.12564]
[1765939777659,1.06e-06,87499.0,87498.0,0.22820528]
[1765939777865,0.09658,87526.0,87525.0,0.091]
[1765939778152,0.35966474,87539.0,87525.0,0.4913578]
[1765939778355,0.0701076,87526.0,87525.0,0.4913578]
[1765939778944,0.0721076,87526.0,87525.0,0.4913578]
[1765939779758,0.0711076,87526.0,87525.0,0.4913578]
[1765939780160,0.0711076,87526.0,87525.0,0.47993]
[1765939780655,0.0711076,87526.0,87525.0,0.11913]
[1765939780858,0.0711076,87526.0,87525.0,0.02813]
[1765939781062,0.0711076,87526.0,87517.0,0.00017139]
[1765939781063,0.05932,87518.0,87517.0,0.00017139]
[1765939781260,0.0707487,87518.0,87517.0,0.00017139]
[1765939781860,0.0707487,87518.0,87517.0,0.09117139]
[1765939785653,0.02966,87518.0,87517.0,0.09117139]
[1765939785857,0.3608,87523.0,87522.0,0.1024282]
[1765939786058,0.42102,87531.0,87530.0,0.11913]
[1765939788265,0.06022,87531.0,87530.0,0.11913]
[1765939788466,0.06122,87531.0,87530.0,0.11913]
[1765939801569,0.001,87531.0,87530.0,0.11913]
[1765939801970,0.03249,87531.0,87530.0,0.11913]
[1765939802272,0.0439949,87547.0,87540.0,0.02813]
[1765939802471,0.0765649,87547.0,87546.0,0.091]
[1765939802769,0.4373626,87565.0,87564.0,0.11913]
[1765939802972,0.46276513,87565.0,87564.0,0.11913]
[1765939803470,0.0767231,87561.0,87560.0,0.07492]
[1765939803768,0.10212563,87561.0,87560.0,0.11913]
[1765939803973,0.03265,87569.0,87568.0,0.091]
[1765939804472,0.42642,87575.0,87574.0,0.0935]
[1765939804769,0.39361,87575.0,87574.0,0.0935]
[1765939804974,0.42642,87575.0,87574.0,0.0935]
[1765939805774,0.06578,87561.0,87560.0,0.02813]
[1765939806076,0.06578,87557.0,87556.0,0.12180139]
[1765939806267,0.06578,87557.0,87556.0,0.68830139]
[1765939806461,0.06578,87557.0,87556.0,0.02830139]
[1765939806666,0.06578,87557.0,87556.0,0.00017139]
[1765939807969,0.09212075,87557.0,87556.0,0.00017139]
[1765939808272,0.0776657,87541.0,87540.0,0.02908]
[1765939808869,0.0776657,87541.0,87540.0,0.12258]
[1765939810477,0.0446952,87545.0,87544.0,0.0935]
[1765939810677,0.0779652,87545.0,87544.0,0.0935]
[1765939812664,0.0789652,87545.0,87544.0,0.0935]
[1765939813071,0.0789652,87545.0,87544.0,0.04842]
[1765939813266,0.0784057,87541.0,87540.0,0.12258]
[1765939813877,0.0784065,87535.0,87534.0,0.02908]
[1765939814077,0.4392065,87535.0,87534.0,0.12258]
[1765939815871,0.0784065,87535.0,87534.0,0.12258]
[1765939816586,0.0449165,87535.0,87534.0,0.12258]
[1765939816780,0.0786165,87535.0,87534.0,0.12258]
[1765939820082,0.0796165,87535.0,87534.0,0.12258]
[1765939820684,0.0786165,87535.0,87534.0,0.12258]
[1765939820886,0.0796165,87535.0,87534.0,0.12258]
[1765939830890,0.0459165,87535.0,87534.0,0.12258]
[1765939831198,0.001,87535.0,87534.0,0.48338]
[1765939831590,0.37239585,87549.0,87548.0,0.0935]
[1765939832495,0.37239585,87549.0,87544.0,0.0598453]
[1765939832496,0.07132,87545.0,87544.0,0.09684]
[1765939832699,0.07132,87545.0,87544.0,0.14192]
[1765939833500,0.011425,87546.0,87545.0,0.0935]
[1765939834708,0.083065,87546.0,87545.0,0.0935]
[1765939835407,0.085065,87546.0,87545.0,0.0935]
[1765939835600,0.013425,87546.0,87545.0,0.0935]
[1765939835804,0.002,87546.0,87545.0,0.0935]
[1765939836393,0.002,87546.0,87545.0,0.15500904]
[1765939836699,0.002,87546.0,87545.0,0.15510635]
[1765939837293,0.002,87546.0,87545.0,0.4543]
[1765939837804,1.05e-06,87549.0,87548.0,0.0955]
[1765939838002,0.0114235,87558.0,87557.0,0.0955]
[1765939838402,0.11322681,87558.0,87557.0,0.0955]
[1765939839897,0.06127544,87574.0,87557.0,0.0955]
[1765939839898,0.0114203,87583.0,87577.0,0.0955]
[1765939840302,0.3608,87586.0,87577.0,0.106921]
[1765939840510,0.0114201,87584.0,87577.0,0.106921]
[1765939840909,0.0114205,87581.0,87577.0,0.106921]
[1765939841212,0.04063369,87578.0,87577.0,0.0955]
[1765939841399,0.07904369,87578.0,87577.0,0.0955]
[1765939841598,0.04063369,87578.0,87577.0,0.0955]
[1765939841805,0.04163369,87578.0,87577.0,0.0955]
[1765939842606,0.04163369,87578.0,87577.0,0.81034]
[1765939843003,0.00328369,87578.0,87577.0,0.81034]
[1765939843812,0.04179369,87578.0,87577.0,0.81034]
[1765939844012,0.04179369,87578.0,87577.0,0.81026]
[1765939844815,0.08030369,87578.0,87577.0,0.81026]
[1765939845119,0.08030369,87578.0,87577.0,0.0955]
[1765939845415,0.08030369,87578.0,87577.0,0.81022]
[1765939846318,0.09172459,87578.0,87577.0,0.81022]
[1765939847017,0.09172459,87578.0,87577.0,0.0955]
[1765939847212,0.45252459,87578.0,87577.0,0.0955]
[1765939847410,0.41301459,87578.0,87577.0,0.0955]
[1765939847610,0.41601459,87578.0,87577.0,0.0955]
[1765939848418,0.40459369,87578.0,87577.0,0.0955]
[1765939848719,0.36608369,87578.0,87577.0,0.106921]
[1765939849509,0.00528369,87578.0,87577.0,0.106921]
[1765939854627,3.69e-06,87578.0,87577.0,0.106921]
[1765939854834,0.3608,87586.0,87577.0,0.106921]
[1765939854835,0.3608,87586.0,87585.0,0.1069199]
[1765939855125,0.0114195,87589.0,87588.0,0.12455]
[1765939855321,0.0557195,87589.0,87588.0,0.12455]
[1765939855528,0.0114195,87589.0,87588.0,0.1359696]
[1765939855715,0.4495,87596.0,87595.0,0.0955]
[1765939855922,0.4609185,87596.0,87595.0,0.0955]
[1765939856435,0.3608,87596.0,87595.0,0.0955]
[1765939857517,0.0114184,87597.0,87596.0,0.1069185]
[1765939857716,0.4611172,87606.0,87605.0,0.0955]
[1765939859038,0.1004179,87601.0,87600.0,0.12455]
[1765939859922,0.1004179,87601.0,87600.0,0.02905]
[1765939860116,0.1004179,87601.0,87594.0,0.38985]
[1765939860117,0.1005486,87595.0,87594.0,0.07774]
[1765939860332,0.4613486,87595.0,87594.0,0.12455]
[1765939860530,0.4613486,87595.0,87594.0,0.02905]
[1765939860732,0.4613486,87595.0,87588.0,0.12455]
[1765939860733,0.1005994,87589.0,87588.0,0.12455]
[1765939860934,0.08918,87588.0,87578.0,0.45456]
[1765939861133,0.08918,87588.0,87576.0,0.02905]
[1765939861532,0.08918,87588.0,87578.0,0.21645714]
[1765939861932,0.08918,87588.0,87587.0,0.09567129]
[1765939862621,0.08918,87588.0,87587.0,0.00017129]
[1765939862826,0.08918,87588.0,87587.0,0.09567129]
[1765939863927,0.08932,87588.0,87587.0,0.09567129]
[1765939864128,0.04459,87588.0,87587.0,0.09567129]
[1765939864531,0.101059,87593.0,87592.0,0.09616]
[1765939868031,0.1013994,87589.0,87588.0,0.12499]
[1765939868430,0.1013994,87589.0,87588.0,0.02883]
[1765939868631,0.08998,87588.0,87587.0,0.00017129]
[1765939869135,0.08898,87588.0,87587.0,0.00017129]
[1765939870042,0.08898,87588.0,87587.0,0.00117129]
[1765939870741,0.099561,87577.0,87573.0,0.06157902]
[1765939870938,0.08814,87571.0,87570.0,0.02905]
[1765939871135,0.08814,87571.0,87570.0,0.12521]
[1765939872639,0.08814,87571.0,87570.0,0.02905]
[1765939872836,0.08814,87571.0,87570.0,0.12521]
[1765939873244,0.08914,87571.0,87570.0,0.12521]
[1765939873935,0.08814,87571.0,87570.0,0.12521]
[1765939874145,0.08914,87571.0,87570.0,0.12521]
[1765939875652,0.08814,87571.0,87570.0,0.12521]
[1765939879037,0.1002826,87565.0,87564.0,0.12499]
[1765939879242,0.4610826,87565.0,87564.0,0.12499]
[1765939879642,0.4610826,87565.0,87562.0,0.09633129]
[1765939879643,0.08886,87563.0,87562.0,0.09633129]
[1765939884141,0.08886,87563.0,87562.0,0.00017129]
[1765939884336,0.08886,87563.0,87562.0,0.04748129]
[1765939885139,0.08886,87563.0,87540.0,0.13771902]
[1765939885140,0.0893,87541.0,87540.0,0.13771902]
[1765939885345,0.1007252,87545.0,87544.0,0.09616]
[1765939885549,0.0893,87545.0,87544.0,0.09616]
[1765939885742,0.0114246,87550.0,87540.0,0.02883]
[1765939885743,0.40545,87548.0,87547.0,0.09616]
[1765939885940,0.04465,87548.0,87547.0,0.09616]
[1765939886140,0.0893,87548.0,87547.0,0.09616]
[1765939887050,0.08938,87541.0,87540.0,0.03083]
[1765939887244,0.08938,87541.0,87540.0,0.12699]
[1765939887649,0.45018,87541.0,87540.0,0.002]
[1765939887845,0.1008658,87540.0,87539.0,0.00017129]
[1765939888755,0.08944,87540.0,87539.0,0.09633129]
[1765939888966,0.3608,87541.0,87540.0,0.09616]
[1765939889249,0.40556,87541.0,87540.0,0.09616]
[1765939889553,0.45035,87541.0,87540.0,0.09616]
[1765939889748,0.4617757,87541.0,87540.0,0.09616]
[1765939896158,0.3608,87541.0,87540.0,0.09616]
[1765939896555,0.4173057,87541.0,87540.0,0.09616]
[1765939896753,0.3722257,87541.0,87540.0,0.09616]
[1765939897060,0.4173057,87541.0,87540.0,0.09616]
[1765939897959,0.3608,87541.0,87540.0,0.09616]
[1765939898164,0.3608,87549.0,87548.0,0.0114248]
[1765939898366,0.3608,87549.0,87548.0,0.1085948]
[1765939899065,0.4625046,87549.0,87548.0,0.09717]
[1765939899964,0.4625046,87549.0,87548.0,0.09817]
[1765939901567,0.40594,87549.0,87548.0,0.09717]
[1765939902163,0.45117,87549.0,87548.0,0.09717]
[1765939903667,0.45117,87549.0,87548.0,0.09817]
[1765939904380,0.45117,87549.0,87548.0,0.09717]
[1765939908587,0.09037,87549.0,87548.0,0.09717]
[1765939911784,0.09037,87549.0,87548.0,0.09817]
[1765939912181,0.09037,87549.0,87548.0,0.09917]
[1765939912785,0.09037,87549.0,87548.0,0.09817]
[1765939912986,0.09037,87549.0,87548.0,0.09717]
[1765939913186,0.09037,87549.0,87548.0,0.09817]
[1765939916093,0.09037,87549.0,87548.0,0.09717]
[1765939921500,0.1029253,87544.0,87543.0,0.06157902]
[1765939921794,0.1029253,87544.0,87539.0,0.00017129]
[1765939921795,0.1029258,87540.0,87539.0,0.00017129]
[1765939922695,0.09154,87539.0,87532.0,0.06157902]
[1765939922916,0.09154,87531.0,87530.0,0.19294035]
[1765939923200,0.45234,87531.0,87530.0,0.19294035]
[1765939923391,0.45234,87531.0,87530.0,9.351e-05]
[1765939923894,0.103008,87523.0,87522.0,0.36097129]
[1765939924093,0.103008,87523.0,87522.0,0.00017129]
[1765939924398,0.103008,87523.0,87522.0,0.04738129]
[1765939924597,0.103008,87523.0,87522.0,0.00017129]
[1765939924803,0.10310151,87523.0,87522.0,0.00017129]
[1765939925692,0.10310151,87523.0,87522.0,0.12798129]
[1765939925895,0.10310151,87523.0,87522.0,0.03006129]
[1765939926090,0.10310151,87523.0,87522.0,0.00017129]
[1765939926296,0.46390151,87523.0,87522.0,0.00017129]
[1765939928404,0.46390151,87523.0,87516.0,0.02989]
[1765939928405,0.09184,87511.0,87510.0,0.25887782]
[1765939928706,0.09184,87511.0,87510.0,0.12761]
[1765939929302,0.1032696,87511.0,87510.0,0.12761]
[1765939929504,0.1032696,87511.0,87510.0,0.12861]
[1765939929702,0.09184,87511.0,87510.0,0.12861]
[1765939930386,0.04592,87511.0,87510.0,0.12861]
[1765939931100,0.09188,87511.0,87510.0,0.12861]
[1765939932498,0.09188,87511.0,87510.0,0.12761]
[1765939932690,0.09188,87511.0,87510.0,0.12861]
[1765939935499,0.0114296,87512.0,87511.0,0.09792]
[1765939936106,0.0574896,87512.0,87511.0,0.09792]
[1765939936604,0.1035696,87512.0,87511.0,0.09892]
[1765939938200,0.1035696,87512.0,87511.0,0.09792]
[1765939938406,0.1035696,87512.0,87511.0,0.09892]
[1765939943114,0.1036296,87512.0,87511.0,0.09892]
[1765939947015,0.0922,87512.0,87511.0,0.09892]
[1765939947213,0.1038087,87518.0,87517.0,0.09792]
[1765939947604,0.0114287,87518.0,87517.0,0.09792]
[1765939947803,0.46470151,87523.0,87522.0,0.09792]
[1765939948005,0.36089351,87523.0,87522.0,0.09792]
[1765939948211,9.351e-05,87523.0,87522.0,0.09792]
[1765939950213,3.51e-06,87523.0,87522.0,0.09792]
[1765939950602,3.51e-06,87523.0,87522.0,0.09892]
[1765939950805,3.51e-06,87523.0,87522.0,0.09992]
[1765939951413,3.51e-06,87523.0,87522.0,0.10092]
[1765939951814,3.51e-06,87523.0,87522.0,0.18302537]
[1765939952416,0.00017129,87531.0,87530.0,0.09792]
[1765939952611,0.00017129,87531.0,87530.0,0.45872]
[1765939952926,0.00017129,87531.0,87530.0,0.4701471]
[1765939953222,0.04656129,87531.0,87530.0,0.4701471]
[1765939953907,0.09270129,87531.0,87530.0,0.4711471]
[1765939954108,0.09270129,87531.0,87530.0,0.16146311]
[1765939954314,0.09270129,87531.0,87530.0,0.09992]
[1765939954515,0.09270129,87531.0,87530.0,0.16146311]
[1765939955117,0.09270129,87531.0,87530.0,0.16046311]
[1765939955318,0.09270129,87531.0,87530.0,0.09992]
[1765939955518,0.09270129,87531.0,87530.0,0.04889]
[1765939955716,0.09270129,87531.0,87530.0,0.15774311]
[1765939956026,0.09270129,87531.0,87530.0,0.0962]
[1765939956524,0.09270129,87531.0,87530.0,0.0952]
[1765939957318,0.09270129,87531.0,87530.0,0.0942]
[1765939963821,0.09270129,87531.0,87525.0,0.03002]
[1765939963822,0.09308,87527.0,87526.0,0.06154311]
[1765939964327,0.1045176,87526.0,87525.0,0.0803]
[1765939964521,0.1045176,87526.0,87525.0,0.14180975]
[1765939965430,0.1045176,87526.0,87525.0,0.19195975]
[1765939966228,0.1045176,87526.0,87525.0,0.13045]
[1765939967125,0.09309,87526.0,87525.0,0.13045]
[1765939967327,0.04675129,87531.0,87530.0,0.12979]
[1765939967722,0.09333129,87531.0,87530.0,0.12979]
[1765939968627,0.00017129,87531.0,87530.0,0.12979]
[1765939968834,0.04676129,87531.0,87530.0,0.12979]
[1765939969132,0.09335129,87531.0,87530.0,0.12979]
[1765939973938,0.1046871,87530.0,87529.0,0.06151801]
[1765939974142,0.0114271,87530.0,87529.0,0.05028]
[1765939974437,0.1047071,87530.0,87529.0,0.16194801]
[1765939974832,0.1047071,87530.0,87529.0,0.10043]
[1765939982629,0.1048476,87526.0,87525.0,0.13045]
[1765939988246,0.1048476,87526.0,87525.0,0.21250634]
[1765939994449,0.09342,87526.0,87525.0,0.21250634]
[1765940001345,0.1048572,87530.0,87529.0,0.09838]
[1765940001951,0.04685,87529.0,87528.0,0.02903]
[1765940002158,0.09343,87523.0,87522.0,0.00017139]
[1765940002349,0.1048588,87517.0,87516.0,0.02903]
[1765940002548,0.1048592,87514.0,87513.0,0.04935]
[1765940002859,0.1048592,87514.0,87513.0,0.09838]
[1765940003150,0.4656592,87514.0,87513.0,0.09838]
[1765940003356,0.09343,87513.0,87512.0,0.02903]
[1765940003547,0.09343,87513.0,87512.0,0.12741]
[1765940003742,0.09343,87513.0,87512.0,0.07838]
[1765940003947,0.1048599,87509.0,87508.0,0.12741]
[1765940004148,0.1048603,87506.0,87505.0,0.09855139]
[1765940004350,0.4656603,87506.0,87505.0,0.00017139]
[1765940004542,0.4656603,87506.0,87498.0,0.00228578]
[1765940004543,0.09343,87499.0,87498.0,0.00228578]
[1765940004749,0.45423,87499.0,87498.0,0.00228578]
[1765940005251,0.45323,87499.0,87498.0,0.00228578]
[1765940005644,0.45323,87499.0,87498.0,0.10066578]
[1765940007960,0.45423,87499.0,87498.0,0.00228578]
[1765940008460,0.45323,87499.0,87498.0,0.00228578]
[1765940008654,0.45423,87499.0,87498.0,0.00228578]
[1765940009256,0.45523,87499.0,87498.0,0.00228578]
[1765940012457,0.45523,87499.0,87498.0,0.10066578]
[1765940012859,0.45523,87499.0,87498.0,0.05163578]
[1765940013053,0.45523,87499.0,87498.0,0.00228578]
[1765940013757,0.04588,87491.0,87490.0,0.09849433]
[1765940013946,0.4659912,87499.0,87498.0,0.09838]
[1765940014146,0.09376,87499.0,87498.0,0.09838]
[1765940014865,0.002,87499.0,87498.0,0.09838]
[1765940015265,0.1032104,87505.0,87504.0,0.0962]
[1765940016264,0.1032104,87505.0,87504.0,0.04903]
[1765940016665,0.1032104,87505.0,87504.0,0.09665]
[1765940016963,0.1032122,87491.0,87490.0,0.00011433]
[1765940017265,0.1032122,87491.0,87490.0,0.09433433]
[1765940018462,0.1032122,87491.0,87490.0,0.09533433]
[1765940019268,0.1052122,87491.0,87490.0,0.09433433]
[1765940020673,0.1052122,87491.0,87480.0,0.15943855]
[1765940020674,0.0981,87485.0,87480.0,0.02799]
[1765940020862,0.0981,87481.0,87480.0,0.0466]
[1765940021058,0.1095342,87476.0,87475.0,0.12221]
[1765940022972,0.1095342,87476.0,87475.0,0.09422]
[1765940023268,0.1095342,87476.0,87475.0,0.0466]
[1765940023568,0.1095342,87476.0,87474.0,0.02799]
[1765940023569,0.1095348,87471.0,87470.0,0.12221]
[1765940023866,0.4693348,87471.0,87470.0,0.12221]
[1765940024871,0.4693348,87471.0,87470.0,0.12421]
[1765940026968,0.4693348,87471.0,87470.0,0.002]
[1765940028068,0.4693348,87471.0,87470.0,0.001]
[1765940028472,0.0981,87463.0,87462.0,0.12221]
[1765940030073,0.470335,87471.0,87470.0,0.09422]
[1765940031168,0.470335,87471.0,87470.0,0.09522]
[1765940032573,0.3608,87471.0,87470.0,0.106655]
[1765940032767,0.0618746,87473.0,87472.0,0.09422]
[1765940032968,0.1095346,87473.0,87472.0,0.09422]
[1765940033372,0.0981,87471.0,87470.0,0.001]
[1765940033970,0.0981,87471.0,87462.0,0.02799]
[1765940033971,0.0981,87463.0,87462.0,0.12221]
[1765940034475,0.05044,87463.0,87462.0,0.12221]
[1765940034672,0.04944,87463.0,87462.0,0.12221]
[1765940034874,0.0981,87470.0,87469.0,0.09422]
[1765940035180,0.0618746,87473.0,87472.0,0.09422]
[1765940036079,0.4589,87478.0,87477.0,0.09422]
[1765940036265,0.4226739,87478.0,87477.0,0.09422]
[1765940036465,0.3722339,87478.0,87477.0,0.09422]
[1765940036975,0.3608,87478.0,87477.0,0.09422]
[1765940037278,0.3608,87478.0,87475.0,0.0114342]
[1765940037279,0.0114326,87488.0,87483.0,0.1056533]
[1765940037470,0.3608,87490.0,87483.0,0.1056533]
[1765940037672,0.3722325,87490.0,87483.0,0.1056533]
[1765940037979,0.0114329,87486.0,87483.0,0.1056533]
[1765940038178,0.05061139,87484.0,87483.0,0.09422]
[1765940038378,0.09927139,87484.0,87483.0,0.09422]
[1765940040381,0.09827139,87484.0,87483.0,0.09422]
[1765940040982,0.09927139,87484.0,87483.0,0.09422]
[1765940047186,0.109004,87477.0,87476.0,0.05001]
[1765940047984,0.1090044,87474.0,87473.0,0.11148887]
[1765940048184,0.1090044,87474.0,87473.0,0.10091]
[1765940049291,0.09657,87474.0,87473.0,0.10091]
[1765940049688,0.1090037,87480.0,87479.0,0.10091]
[1765940049891,0.09757,87480.0,87479.0,0.10091]
[1765940050287,0.4204933,87483.0,87482.0,0.10091]
[1765940050589,0.4698033,87483.0,87482.0,0.10091]
[1765940051891,0.4708033,87483.0,87482.0,0.10091]
[1765940052194,0.4698033,87483.0,87482.0,0.10091]
[1765940052386,0.4708033,87483.0,87482.0,0.10091]
[1765940052992,0.46037,87483.0,87482.0,0.10091]
[1765940053692,0.002,87483.0,87482.0,0.10091]
[1765940054286,0.001,87483.0,87482.0,0.10091]
[1765940054485,0.002,87483.0,87482.0,0.10091]
[1765940054996,0.001,87483.0,87482.0,0.10091]
[1765940055395,0.00017139,87484.0,87483.0,0.1123433]
[1765940058195,0.00017139,87484.0,87483.0,0.17382217]
[1765940058989,0.09774139,87484.0,87483.0,0.17382217]
[1765940060296,0.09774139,87484.0,87483.0,0.1123433]
[1765940062405,0.09774139,87484.0,87483.0,0.10091]
[1765940063797,0.04843139,87484.0,87483.0,0.10091]
[1765940064507,0.09774139,87484.0,87483.0,0.10091]
[1765940066100,0.00017139,87484.0,87483.0,0.10091]
[1765940069101,0.04843139,87484.0,87483.0,0.10091]
[1765940069407,0.09774139,87484.0,87483.0,0.10091]
[1765940073607,0.09774139,87484.0,87483.0,0.05001]
[1765940073803,0.00017139,87484.0,87480.0,0.03024]
[1765940074000,0.09757,87481.0,87480.0,0.13178]
[1765940084605,0.09827,87479.0,87477.0,0.08205634]
[1765940084804,0.09827,87474.0,87473.0,0.13020634]
[1765940085004,0.0114337,87480.0,87468.0,0.12397]
[1765940085005,0.09827,87469.0,87468.0,0.12397]
[1765940085311,0.1097051,87469.0,87468.0,0.12397]
[1765940086412,0.1097051,87469.0,87468.0,0.18559324]
[1765940087313,0.1097051,87469.0,87468.0,0.12397]
[1765940087512,0.1097051,87469.0,87468.0,0.12497]
[1765940092221,0.1097051,87469.0,87468.0,0.001]
[1765940093319,0.1097051,87469.0,87468.0,0.04915]
[1765940093717,0.1097051,87469.0,87468.0,0.001]
[1765940094019,0.1097051,87469.0,87458.0,0.00228683]
[1765940094020,0.1097064,87459.0,87458.0,0.00228683]
[1765940094219,0.47059833,87459.0,87458.0,0.00228683]
[1765940094426,0.47059833,87459.0,87458.0,0.05043683]
[1765940094723,0.47059833,87459.0,87458.0,0.00228683]
[1765940095727,0.47159833,87459.0,87458.0,0.00228683]
[1765940096309,0.47259833,87459.0,87458.0,0.00228683]
[1765940096723,0.47359833,87459.0,87458.0,0.00228683]
[1765940101112,0.47359833,87459.0,87458.0,0.09826683]
[1765940101316,0.42558833,87459.0,87458.0,0.09826683]
[1765940101514,0.47359833,87459.0,87458.0,0.09826683]
[1765940102428,0.47159833,87459.0,87458.0,0.05043683]
[1765940102628,0.47259833,87459.0,87458.0,0.00228683]
[1765940103528,0.47159833,87459.0,87458.0,0.00228683]
[1765940103726,0.47359833,87459.0,87458.0,0.00228683]
[1765940104624,0.09928,87445.0,87440.0,0.02972]
[1765940104925,0.1107188,87441.0,87440.0,0.12579]
[1765940105630,0.09928,87440.0,87430.0,0.02972]
[1765940105828,0.1172,87440.0,87430.0,0.02972]
[1765940106035,0.1107201,87431.0,87430.0,0.07881]
[1765940106226,0.1107201,87431.0,87430.0,0.09607]
[1765940106531,0.1097201,87431.0,87430.0,0.09607]
[1765940106731,0.05037,87431.0,87430.0,0.09607]
[1765940106922,0.05049186,87431.0,87430.0,0.09607]
[1765940107118,0.00012186,87431.0,87430.0,0.09607]
[1765940107633,0.3608,87441.0,87440.0,0.09607]
[1765940107933,0.3608,87454.0,87451.0,0.09607]
[1765940107934,0.0628074,87452.0,87451.0,0.09607]
[1765940108231,0.1107174,87452.0,87451.0,0.09607]
[1765940108432,0.09928,87452.0,87451.0,0.09607]
[1765940108826,0.09933618,87452.0,87451.0,0.09607]
[1765940109423,0.10033618,87452.0,87451.0,0.09607]
[1765940111728,0.10133618,87452.0,87451.0,0.09607]
[1765940118340,0.05342618,87452.0,87451.0,0.09607]
[1765940119436,0.05242618,87452.0,87451.0,0.09607]
[1765940119637,0.05342618,87452.0,87451.0,0.09607]
[1765940119840,0.10133618,87452.0,87451.0,0.09607]
[1765940120746,0.0114356,87466.0,87465.0,0.12648]
[1765940120937,0.0628051,87469.0,87466.0,0.0114355]
[1765940121136,0.0114355,87466.0,87465.0,0.12648]
[1765940121742,0.0134355,87466.0,87465.0,0.12648]
[1765940121942,0.0144355,87466.0,87465.0,0.12648]
[1765940122339,0.0124355,87466.0,87465.0,0.12648]
[1765940122543,0.001,87466.0,87465.0,0.1379156]
[1765940122846,0.0008322,87466.0,87465.0,0.1379156]
[1765940123145,0.1107146,87473.0,87472.0,0.09607]
[1765940124745,0.09928,87473.0,87472.0,0.09607]
[1765940125341,0.10028,87473.0,87472.0,0.09607]
[1765940125846,0.001,87473.0,87472.0,0.09607]
[1765940126047,0.001,87473.0,87472.0,0.45687]
[1765940126239,0.001,87473.0,87472.0,0.46801171]
[1765940126745,0.001,87473.0,87472.0,0.45687]
[1765940127344,0.001,87473.0,87472.0,0.45787]
[1765940127841,0.00017149,87474.0,87473.0,0.1075046]
[1765940128948,0.00017149,87474.0,87473.0,0.1085046]
[1765940129550,0.110713,87485.0,87484.0,0.1075031]
[1765940129748,0.4715114,87497.0,87496.0,0.09607]
[1765940129942,0.4974033,87497.0,87496.0,0.09607]
[1765940130348,0.4715114,87497.0,87496.0,0.09607]
[1765940131351,0.4755114,87497.0,87496.0,0.09607]
[1765940133645,0.4735114,87497.0,87496.0,0.09607]
[1765940133852,0.4755114,87497.0,87496.0,0.09607]
[1765940135150,0.4755114,87497.0,87496.0,0.04909]